[Event "Titled Tuesday Blitz November 22 Late 2022"]
[White "Oganian, Miran"]
[Black "Goncalves, Davi Sulzbacher"]
[WhiteFideId "4122488"]
[BlackFideId "2154510"]
[WhiteElo "2323"]
[BlackElo "2182"]
[Result "1-0"]
[Round "04"]
[TimeControl "180+1"]
[Date "2022.11.23"]
[WhiteClock "0:01:28"]
[BlackClock "0:00:15"]

1. e4 {[%clk 0:02:58]}  c5 {[%clk 0:02:59]} 2. Nf3 {[%clk 0:02:58]}  d6 {[%clk 0:02:59]} 3. Bb5+ {[%clk 0:02:58]}  Nd7 {[%clk 0:02:59]} 4. d4 {[%clk 0:02:57]}  a6 {[%clk 0:02:59]} 5. Bxd7+ {[%clk 0:02:56]}  Bxd7 {[%clk 0:02:59]} 6. O-O {[%clk 0:02:57]}  Nf6 {[%clk 0:02:59]} 7. e5 {[%clk 0:02:56]}  Nd5 {[%clk 0:02:48]} 8. c4 {[%clk 0:02:49]}  Nb6 {[%clk 0:02:47]} 9. b3 {[%clk 0:02:47]}  Bg4 {[%clk 0:02:39]} 10. h3 {[%clk 0:02:44]}  Bxf3 {[%clk 0:02:35]} 11. Qxf3 {[%clk 0:02:43]}  cxd4 {[%clk 0:02:34]} 12. e6 {[%clk 0:02:42]}  fxe6 {[%clk 0:02:31]} 13. Qxb7 {[%clk 0:02:41]}  g6 {[%clk 0:02:27]} 14. Re1 {[%clk 0:02:40]}  e5 {[%clk 0:02:23]} 15. c5 {[%clk 0:02:35]}  Nd7 {[%clk 0:02:19]} 16. cxd6 {[%clk 0:02:33]}  exd6 {[%clk 0:02:20]} 17. Bg5 {[%clk 0:02:33]}  Qc8 {[%clk 0:02:17]} 18. Qd5 {[%clk 0:02:33]}  Be7 {[%clk 0:02:06]} 19. Bxe7 {[%clk 0:02:25]}  Kxe7 {[%clk 0:02:06]} 20. Nd2 {[%clk 0:02:26]}  Qc5 {[%clk 0:02:01]} 21. Qe4 {[%clk 0:02:23]}  Rac8 {[%clk 0:01:48]} 22. Qh4+ {[%clk 0:02:18]}  Ke6 {[%clk 0:01:26]} 23. Ne4 {[%clk 0:02:17]}  Qc2 {[%clk 0:01:26]} 24. Rad1 {[%clk 0:02:00]}  h6 {[%clk 0:01:05]} 25. Rxd4 {[%clk 0:01:58]}  exd4 {[%clk 0:00:52]} 26. Qg4+ {[%clk 0:01:31]}  Kd5 {[%clk 0:00:24]} 27. Qxd7 {[%clk 0:01:29]}  Qc7 {[%clk 0:00:16]} 28. Nf6+ {[%clk 0:01:27]}  Kc5 {[%clk 0:00:16]} 29. Rc1+ {[%clk 0:01:27]}  Kb6 {[%clk 0:00:15]} 30. Nd5+ {[%clk 0:01:28]} 1-0


[Site "https://www.chess.com"]

[Event "Titled Tuesday Blitz November 22 Late 2022"]
[White "Ozdemir, Serhan Berat"]
[Black "Silvestre, Christian"]
[WhiteFideId "6374611"]
[BlackFideId "30956269"]
[WhiteElo "2016"]
[BlackElo "2338"]
[Result "1-0"]
[Round "04"]
[TimeControl "180+1"]
[Date "2022.11.23"]
[WhiteClock "0:00:36"]
[BlackClock "0:00:47"]

1. e4 {[%clk 0:03:00]}  c6 {[%clk 0:02:57]} 2. d4 {[%clk 0:03:00]}  d5 {[%clk 0:02:57]} 3. exd5 {[%clk 0:03:01]}  cxd5 {[%clk 0:02:57]} 4. c4 {[%clk 0:03:01]}  dxc4 {[%clk 0:02:57]} 5. Bxc4 {[%clk 0:03:00]}  Qc7 {[%clk 0:02:56]} 6. Bb3 {[%clk 0:02:49]}  Bg4 {[%clk 0:02:52]} 7. f3 {[%clk 0:02:47]}  Bh5 {[%clk 0:02:50]} 8. Ne2 {[%clk 0:02:43]}  e6 {[%clk 0:02:48]} 9. Nbc3 {[%clk 0:02:43]}  a6 {[%clk 0:02:47]} 10. Ne4 {[%clk 0:02:31]}  Bg6 {[%clk 0:02:43]} 11. Bf4 {[%clk 0:02:28]}  Qa5+ {[%clk 0:02:41]} 12. Bd2 {[%clk 0:02:20]}  Qb6 {[%clk 0:02:40]} 13. O-O {[%clk 0:02:15]}  Nc6 {[%clk 0:02:29]} 14. Be3 {[%clk 0:02:12]}  Nf6 {[%clk 0:02:23]} 15. Nxf6+ {[%clk 0:02:07]}  gxf6 {[%clk 0:02:24]} 16. Qd2 {[%clk 0:01:51]}  Qa5 {[%clk 0:02:23]} 17. Nc3 {[%clk 0:01:38]}  Bb4 {[%clk 0:02:04]} 18. Rac1 {[%clk 0:01:37]}  O-O {[%clk 0:02:01]} 19. Rfd1 {[%clk 0:01:35]}  Rfd8 {[%clk 0:02:00]} 20. Qf2 {[%clk 0:01:35]}  Bxc3 {[%clk 0:01:49]} 21. bxc3 {[%clk 0:01:27]}  Rac8 {[%clk 0:01:48]} 22. Qh4 {[%clk 0:01:25]}  Ne7 {[%clk 0:01:36]} 23. Qxf6 {[%clk 0:01:18]}  Nf5 {[%clk 0:01:35]} 24. Bd2 {[%clk 0:01:14]}  Qa3 {[%clk 0:01:32]} 25. g4 {[%clk 0:01:11]}  Qe7 {[%clk 0:01:30]} 26. Bg5 {[%clk 0:01:09]}  Qxf6 {[%clk 0:01:21]} 27. Bxf6 {[%clk 0:01:10]}  Ne3 {[%clk 0:01:21]} 28. Bxd8 {[%clk 0:01:08]}  Nxd1 {[%clk 0:01:20]} 29. Rxd1 {[%clk 0:01:04]}  Rxd8 {[%clk 0:01:19]} 30. c4 {[%clk 0:01:01]}  Kf8 {[%clk 0:01:17]} 31. Kf2 {[%clk 0:01:01]}  Ke7 {[%clk 0:01:17]} 32. Ke3 {[%clk 0:00:56]}  h5 {[%clk 0:01:17]} 33. h3 {[%clk 0:00:53]}  hxg4 {[%clk 0:01:17]} 34. hxg4 {[%clk 0:00:54]}  Rh8 {[%clk 0:01:18]} 35. Rd2 {[%clk 0:00:44]}  Rh1 {[%clk 0:01:15]} 36. d5 {[%clk 0:00:41]}  Kd6 {[%clk 0:01:13]} 37. Kf4 {[%clk 0:00:40]}  e5+ {[%clk 0:01:10]} 38. Kg5 {[%clk 0:00:40]}  Rf1 {[%clk 0:01:07]} 39. c5+ {[%clk 0:00:40]}  Kxc5 {[%clk 0:01:06]} 40. d6 {[%clk 0:00:41]}  Rxf3 {[%clk 0:00:51]} 41. d7 {[%clk 0:00:39]}  Rd3 {[%clk 0:00:48]} 42. Rxd3 {[%clk 0:00:39]}  Bxd3 {[%clk 0:00:49]} 43. d8=Q {[%clk 0:00:39]}  Kc6 {[%clk 0:00:48]} 44. Qd5+ {[%clk 0:00:36]}  Kb6 {[%clk 0:00:47]} 45. Qxd3 {[%clk 0:00:36]}  e4 {[%clk 0:00:47]} 46. Qd4+ {[%clk 0:00:36]} 1-0


[Site "https://www.chess.com"]

[Event "Titled Tuesday Blitz November 22 Late 2022"]
[White "Piesik, Piotr"]
[Black "Pan, Kevin"]
[WhiteFideId "1136194"]
[BlackFideId "30915708"]
[WhiteElo "2316"]
[BlackElo "2233"]
[Result "1-0"]
[Round "04"]
[TimeControl "180+1"]
[Date "2022.11.23"]
[WhiteClock "0:01:37"]
[BlackClock "0:00:52"]

1. Nf3 {[%clk 0:03:00]}  d5 {[%clk 0:02:32]} 2. g3 {[%clk 0:03:00]}  Nf6 {[%clk 0:02:32]} 3. Bg2 {[%clk 0:03:00]}  e6 {[%clk 0:02:33]} 4. O-O {[%clk 0:03:00]}  c6 {[%clk 0:02:33]} 5. d3 {[%clk 0:03:01]}  Nbd7 {[%clk 0:02:34]} 6. Nbd2 {[%clk 0:03:01]}  b6 {[%clk 0:02:35]} 7. e4 {[%clk 0:03:02]}  Bb7 {[%clk 0:02:35]} 8. Qe2 {[%clk 0:03:02]}  Qc7 {[%clk 0:02:34]} 9. Re1 {[%clk 0:03:00]}  dxe4 {[%clk 0:02:31]} 10. dxe4 {[%clk 0:03:00]}  e5 {[%clk 0:02:32]} 11. a4 {[%clk 0:03:00]}  Bc5 {[%clk 0:02:22]} 12. Nb3 {[%clk 0:02:55]}  Bd6 {[%clk 0:02:22]} 13. a5 {[%clk 0:02:55]}  c5 {[%clk 0:02:11]} 14. Nfd2 {[%clk 0:02:47]}  O-O {[%clk 0:02:03]} 15. a6 {[%clk 0:02:37]}  Bc6 {[%clk 0:01:50]} 16. Nc4 {[%clk 0:02:37]}  Bb5 {[%clk 0:01:38]} 17. Bf1 {[%clk 0:02:35]}  Nb8 {[%clk 0:01:33]} 18. Qf3 {[%clk 0:02:32]}  Nc6 {[%clk 0:01:30]} 19. c3 {[%clk 0:02:19]}  Be7 {[%clk 0:01:24]} 20. Bg5 {[%clk 0:02:16]}  Rad8 {[%clk 0:01:20]} 21. Ne3 {[%clk 0:02:02]}  Bxf1 {[%clk 0:01:18]} 22. Kxf1 {[%clk 0:02:01]}  Nxe4 {[%clk 0:01:08]} 23. Bxe7 {[%clk 0:01:57]}  Nd2+ {[%clk 0:01:08]} 24. Nxd2 {[%clk 0:01:57]}  Rxd2 {[%clk 0:01:08]} 25. Bxf8 {[%clk 0:01:56]}  Kxf8 {[%clk 0:01:09]} 26. Rad1 {[%clk 0:01:55]}  Rxb2 {[%clk 0:01:09]} 27. Nd5 {[%clk 0:01:52]}  Qc8 {[%clk 0:01:09]} 28. Kg2 {[%clk 0:01:48]}  Qxa6 {[%clk 0:01:09]} 29. Nf6 {[%clk 0:01:43]}  gxf6 {[%clk 0:01:04]} 30. Qxc6 {[%clk 0:01:43]}  Kg7 {[%clk 0:01:03]} 31. Rd6 {[%clk 0:01:38]}  Qa2 {[%clk 0:00:58]} 32. Qf3 {[%clk 0:01:37]}  h5 {[%clk 0:00:54]} 33. Qxf6+ {[%clk 0:01:37]}  Kh7 {[%clk 0:00:51]} 34. Qh6+ {[%clk 0:01:37]}  Kg8 {[%clk 0:00:52]} 35. Rd8# {[%clk 0:01:37]} 1-0


[Site "https://www.chess.com"]

[Event "Titled Tuesday Blitz November 22 Late 2022"]
[White "Poliakova, Varvara"]
[Black "Corrales Jimenez, Fidel"]
[WhiteFideId "13518313"]
[BlackFideId "3506690"]
[WhiteElo "2099"]
[BlackElo "2541"]
[Result "0-1"]
[Round "04"]
[TimeControl "180+1"]
[Date "2022.11.23"]
[WhiteClock "0:00:02"]
[BlackClock "0:00:14"]

1. e4 {[%clk 0:02:48]}  c5 {[%clk 0:02:58]} 2. Nf3 {[%clk 0:02:47]}  d6 {[%clk 0:02:57]} 3. d4 {[%clk 0:02:48]}  cxd4 {[%clk 0:02:58]} 4. Nxd4 {[%clk 0:02:48]}  Nf6 {[%clk 0:02:58]} 5. Nc3 {[%clk 0:02:48]}  a6 {[%clk 0:02:57]} 6. h3 {[%clk 0:02:47]}  b5 {[%clk 0:02:56]} 7. g4 {[%clk 0:02:45]}  Bb7 {[%clk 0:02:56]} 8. Bg2 {[%clk 0:02:45]}  h6 {[%clk 0:02:46]} 9. Nd5 {[%clk 0:02:43]}  Nbd7 {[%clk 0:02:37]} 10. Be3 {[%clk 0:02:39]}  e6 {[%clk 0:02:36]} 11. Nxf6+ {[%clk 0:02:38]}  Nxf6 {[%clk 0:02:37]} 12. Qd3 {[%clk 0:02:33]}  Rc8 {[%clk 0:02:36]} 13. c3 {[%clk 0:02:32]}  d5 {[%clk 0:02:33]} 14. exd5 {[%clk 0:02:16]}  Bxd5 {[%clk 0:02:34]} 15. Bxd5 {[%clk 0:02:06]}  Qxd5 {[%clk 0:02:35]} 16. Ke2 {[%clk 0:01:49]}  Be7 {[%clk 0:02:26]} 17. Nf3 {[%clk 0:01:46]}  Qb7 {[%clk 0:02:23]} 18. Rad1 {[%clk 0:01:37]}  O-O {[%clk 0:02:22]} 19. g5 {[%clk 0:01:36]}  hxg5 {[%clk 0:02:20]} 20. Nxg5 {[%clk 0:01:34]}  b4 {[%clk 0:02:15]} 21. c4 {[%clk 0:01:28]}  Rfd8 {[%clk 0:01:53]} 22. Qc2 {[%clk 0:01:27]}  Rxd1 {[%clk 0:01:12]} 23. Rxd1 {[%clk 0:01:28]}  Qc6 {[%clk 0:01:12]} 24. b3 {[%clk 0:01:24]}  Bc5 {[%clk 0:01:12]} 25. Qd3 {[%clk 0:01:17]}  Bxe3 {[%clk 0:01:08]} 26. Qxe3 {[%clk 0:01:18]}  Qc7 {[%clk 0:01:04]} 27. Ne4 {[%clk 0:01:17]}  Nxe4 {[%clk 0:00:59]} 28. Qxe4 {[%clk 0:01:17]}  Qa5 {[%clk 0:00:58]} 29. Rd2 {[%clk 0:01:17]}  g6 {[%clk 0:00:56]} 30. Qd4 {[%clk 0:01:13]}  Qh5+ {[%clk 0:00:53]} 31. Qg4 {[%clk 0:01:12]}  Qe5+ {[%clk 0:00:53]} 32. Kd1 {[%clk 0:01:08]}  a5 {[%clk 0:00:48]} 33. Qd4 {[%clk 0:01:03]}  Qf5 {[%clk 0:00:45]} 34. Ke2 {[%clk 0:01:00]}  Qxh3 {[%clk 0:00:44]} 35. Qd7 {[%clk 0:00:59]}  Rc5 {[%clk 0:00:26]} 36. Qd8+ {[%clk 0:00:56]}  Kh7 {[%clk 0:00:23]} 37. Qf6 {[%clk 0:00:53]}  Rf5 {[%clk 0:00:20]} 38. Qd4 {[%clk 0:00:48]}  Qf3+ {[%clk 0:00:19]} 39. Ke1 {[%clk 0:00:44]}  Rf4 {[%clk 0:00:20]} 40. Rd3 {[%clk 0:00:01]}  Qh1+ {[%clk 0:00:17]} 41. Ke2 {[%clk 0:00:01]}  Rxd4 {[%clk 0:00:16]} 42. Rxd4 {[%clk 0:00:02]}  Qa1 {[%clk 0:00:15]} 43. Rd2 {[%clk 0:00:02]}  Qc3 {[%clk 0:00:14]} 44. Kd1 {[%clk 0:00:02]}  Kg7 {[%clk 0:00:14]} 45. Rc2 {[%clk 0:00:02]}  Qd4+ {[%clk 0:00:14]} 46. Ke2 {[%clk 0:00:02]}  Qc5 {[%clk 0:00:15]} 47. Kd3 {[%clk 0:00:02]}  g5 {[%clk 0:00:16]} 48. Re2 {[%clk 0:00:02]}  Kf6 {[%clk 0:00:14]} 49. f3 {[%clk 0:00:02]}  Qd6+ {[%clk 0:00:14]} 0-1


[Site "https://www.chess.com"]

[Event "Titled Tuesday Blitz November 22 Late 2022"]
[White "Przybylski, Wojciech"]
[Black "Simonovic, Miroslav"]
[WhiteFideId "1117599"]
[BlackFideId "919152"]
[WhiteElo "2221"]
[BlackElo "2043"]
[Result "1-0"]
[Round "04"]
[TimeControl "180+1"]
[Date "2022.11.23"]
[WhiteClock "0:00:16"]
[BlackClock "0:00:09"]

1. e4 {[%clk 0:03:00]}  c5 {[%clk 0:03:00]} 2. Nf3 {[%clk 0:02:58]}  Nc6 {[%clk 0:03:00]} 3. d4 {[%clk 0:02:57]}  cxd4 {[%clk 0:03:01]} 4. Nxd4 {[%clk 0:02:57]}  a6 {[%clk 0:03:02]} 5. Be2 {[%clk 0:02:56]}  e5 {[%clk 0:03:02]} 6. Nb3 {[%clk 0:02:54]}  Nf6 {[%clk 0:03:02]} 7. Nc3 {[%clk 0:02:54]}  Bb4 {[%clk 0:03:02]} 8. Bf3 {[%clk 0:02:52]}  O-O {[%clk 0:03:01]} 9. O-O {[%clk 0:02:52]}  Bxc3 {[%clk 0:02:59]} 10. bxc3 {[%clk 0:02:52]}  h6 {[%clk 0:02:59]} 11. c4 {[%clk 0:02:48]}  d6 {[%clk 0:02:59]} 12. Ba3 {[%clk 0:02:44]}  Ne8 {[%clk 0:02:57]} 13. c5 {[%clk 0:02:42]}  b5 {[%clk 0:02:35]} 14. cxb6 {[%clk 0:02:24]}  Be6 {[%clk 0:02:15]} 15. Rb1 {[%clk 0:02:14]}  Rb8 {[%clk 0:02:05]} 16. Qd2 {[%clk 0:01:49]}  Qxb6 {[%clk 0:01:48]} 17. Rfd1 {[%clk 0:01:48]}  Nd4 {[%clk 0:01:32]} 18. Be2 {[%clk 0:01:15]}  Bxb3 {[%clk 0:01:20]} 19. cxb3 {[%clk 0:01:09]}  Nc7 {[%clk 0:01:18]} 20. Bc4 {[%clk 0:01:04]}  Rfd8 {[%clk 0:01:08]} 21. Bb2 {[%clk 0:01:01]}  Ncb5 {[%clk 0:01:06]} 22. a4 {[%clk 0:00:58]}  Nc7 {[%clk 0:00:47]} 23. Bxd4 {[%clk 0:00:57]}  exd4 {[%clk 0:00:48]} 24. Qxd4 {[%clk 0:00:57]}  Ne6 {[%clk 0:00:45]} 25. Qxb6 {[%clk 0:00:54]}  Rxb6 {[%clk 0:00:46]} 26. a5 {[%clk 0:00:54]}  Rc6 {[%clk 0:00:35]} 27. Rd5 {[%clk 0:00:53]}  Nc7 {[%clk 0:00:26]} 28. Rd3 {[%clk 0:00:48]}  Kf8 {[%clk 0:00:22]} 29. f4 {[%clk 0:00:46]}  Ke7 {[%clk 0:00:22]} 30. g3 {[%clk 0:00:44]}  Rb8 {[%clk 0:00:20]} 31. Rbd1 {[%clk 0:00:42]}  Ne6 {[%clk 0:00:15]} 32. e5 {[%clk 0:00:39]}  dxe5 {[%clk 0:00:15]} 33. Rd7+ {[%clk 0:00:34]}  Kf6 {[%clk 0:00:14]} 34. fxe5+ {[%clk 0:00:34]}  Kxe5 {[%clk 0:00:15]} 35. Rxf7 {[%clk 0:00:33]}  Rc5 {[%clk 0:00:05]} 36. Re1+ {[%clk 0:00:30]}  Kd4 {[%clk 0:00:06]} 37. Rxe6 {[%clk 0:00:29]}  Rxa5 {[%clk 0:00:05]} 38. Rf4+ {[%clk 0:00:21]}  Kc3 {[%clk 0:00:05]} 39. Re3+ {[%clk 0:00:20]}  Kb2 {[%clk 0:00:06]} 40. Kg2 {[%clk 0:00:20]}  Ra2 {[%clk 0:00:05]} 41. Rf2+ {[%clk 0:00:19]}  Ka3 {[%clk 0:00:05]} 42. Rxa2+ {[%clk 0:00:19]}  Kxa2 {[%clk 0:00:06]} 43. Bxa6 {[%clk 0:00:19]}  Rxb3 {[%clk 0:00:05]} 44. Bc4 {[%clk 0:00:19]}  Kb2 {[%clk 0:00:06]} 45. Bxb3 {[%clk 0:00:19]}  Kc1 {[%clk 0:00:06]} 46. Kf3 {[%clk 0:00:19]}  Kd2 {[%clk 0:00:06]} 47. h3 {[%clk 0:00:19]}  g5 {[%clk 0:00:07]} 48. g4 {[%clk 0:00:19]}  h5 {[%clk 0:00:08]} 49. gxh5 {[%clk 0:00:19]}  g4+ {[%clk 0:00:08]} 50. hxg4 {[%clk 0:00:19]}  Kc1 {[%clk 0:00:08]} 51. h6 {[%clk 0:00:19]}  Kb2 {[%clk 0:00:08]} 52. h7 {[%clk 0:00:19]}  Kb1 {[%clk 0:00:08]} 53. Bd5 {[%clk 0:00:19]}  Kc1 {[%clk 0:00:07]} 54. Re5 {[%clk 0:00:19]}  Kd2 {[%clk 0:00:07]} 55. h8=Q {[%clk 0:00:19]}  Kd3 {[%clk 0:00:08]} 56. Qh7+ {[%clk 0:00:19]}  Kd4 {[%clk 0:00:08]} 57. Qg7 {[%clk 0:00:19]}  Kc5 {[%clk 0:00:08]} 58. Qf6 {[%clk 0:00:18]}  Kb4 {[%clk 0:00:08]} 59. Be4 {[%clk 0:00:17]}  Kc3 {[%clk 0:00:08]} 60. Qc6+ {[%clk 0:00:17]}  Kd2 {[%clk 0:00:08]} 61. Rd5+ {[%clk 0:00:17]}  Ke1 {[%clk 0:00:09]} 62. Qc1# {[%clk 0:00:16]} 1-0


[Site "https://www.chess.com"]

[Event "Titled Tuesday Blitz November 22 Late 2022"]
[White "Rangel, Daniel"]
[Black "Barria Zuniga, Daniel"]
[WhiteFideId "2124475"]
[BlackFideId "3400816"]
[WhiteElo "2225"]
[BlackElo "2414"]
[Result "0-1"]
[Round "04"]
[TimeControl "180+1"]
[Date "2022.11.23"]
[WhiteClock "0:00:03"]
[BlackClock "0:00:06"]

1. d4 {[%clk 0:02:51]}  Nf6 {[%clk 0:02:46]} 2. c4 {[%clk 0:02:51]}  e6 {[%clk 0:02:46]} 3. Nc3 {[%clk 0:02:50]}  Bb4 {[%clk 0:02:46]} 4. e3 {[%clk 0:02:51]}  O-O {[%clk 0:02:43]} 5. Ne2 {[%clk 0:02:51]}  Re8 {[%clk 0:02:42]} 6. a3 {[%clk 0:02:51]}  Bf8 {[%clk 0:02:40]} 7. Nf4 {[%clk 0:02:50]}  d6 {[%clk 0:02:39]} 8. Be2 {[%clk 0:02:49]}  e5 {[%clk 0:02:39]} 9. dxe5 {[%clk 0:02:48]}  dxe5 {[%clk 0:02:40]} 10. Nfd5 {[%clk 0:02:49]}  c6 {[%clk 0:02:38]} 11. Nxf6+ {[%clk 0:02:49]}  Qxf6 {[%clk 0:02:39]} 12. O-O {[%clk 0:02:48]}  Nd7 {[%clk 0:02:36]} 13. Ne4 {[%clk 0:02:43]}  Qe7 {[%clk 0:02:34]} 14. Ng3 {[%clk 0:02:24]}  g6 {[%clk 0:02:31]} 15. b3 {[%clk 0:02:17]}  a5 {[%clk 0:02:29]} 16. Bb2 {[%clk 0:02:16]}  Nc5 {[%clk 0:02:26]} 17. b4 {[%clk 0:02:09]}  axb4 {[%clk 0:02:25]} 18. axb4 {[%clk 0:02:10]}  Rxa1 {[%clk 0:02:25]} 19. Qxa1 {[%clk 0:02:11]}  Na6 {[%clk 0:02:24]} 20. b5 {[%clk 0:02:11]}  Nc5 {[%clk 0:02:22]} 21. Ba3 {[%clk 0:01:54]}  Qc7 {[%clk 0:02:11]} 22. Rb1 {[%clk 0:01:48]}  f5 {[%clk 0:02:03]} 23. b6 {[%clk 0:01:45]}  Qf7 {[%clk 0:02:01]} 24. Rd1 {[%clk 0:01:32]}  Nd7 {[%clk 0:01:51]} 25. Bxf8 {[%clk 0:01:29]}  Qxf8 {[%clk 0:01:52]} 26. Qa5 {[%clk 0:01:04]}  Qc5 {[%clk 0:01:48]} 27. Qxc5 {[%clk 0:01:02]}  Nxc5 {[%clk 0:01:48]} 28. Nf1 {[%clk 0:00:55]}  Kf8 {[%clk 0:01:43]} 29. Rb1 {[%clk 0:00:46]}  Ke7 {[%clk 0:01:41]} 30. f3 {[%clk 0:00:47]}  Rd8 {[%clk 0:01:39]} 31. Kf2 {[%clk 0:00:46]}  Be6 {[%clk 0:01:33]} 32. Ra1 {[%clk 0:00:43]}  Nd7 {[%clk 0:01:24]} 33. Ra7 {[%clk 0:00:28]}  Rb8 {[%clk 0:01:20]} 34. Nd2 {[%clk 0:00:28]}  Kd6 {[%clk 0:01:14]} 35. Nb3 {[%clk 0:00:26]}  Nc5 {[%clk 0:01:03]} 36. Na5 {[%clk 0:00:23]}  Bc8 {[%clk 0:00:59]} 37. Ke1 {[%clk 0:00:20]}  Nd7 {[%clk 0:00:58]} 38. Nb3 {[%clk 0:00:19]}  c5 {[%clk 0:00:57]} 39. Ra5 {[%clk 0:00:15]}  Nxb6 {[%clk 0:00:43]} 40. Nxc5 {[%clk 0:00:09]}  Be6 {[%clk 0:00:39]} 41. Nxb7+ {[%clk 0:00:07]}  Kc6 {[%clk 0:00:30]} 42. Nc5 {[%clk 0:00:05]}  Bxc4 {[%clk 0:00:26]} 43. Nd3 {[%clk 0:00:03]}  Bxd3 {[%clk 0:00:22]} 44. Bxd3 {[%clk 0:00:04]}  Nd5 {[%clk 0:00:21]} 45. Ra6+ {[%clk 0:00:04]}  Rb6 {[%clk 0:00:19]} 46. Rxb6+ {[%clk 0:00:04]}  Kxb6 {[%clk 0:00:19]} 47. e4 {[%clk 0:00:04]}  Nf4 {[%clk 0:00:19]} 48. Bf1 {[%clk 0:00:04]}  fxe4 {[%clk 0:00:19]} 49. fxe4 {[%clk 0:00:04]}  Kc5 {[%clk 0:00:20]} 50. g3 {[%clk 0:00:04]}  Ne6 {[%clk 0:00:19]} 51. Kf2 {[%clk 0:00:04]}  Kd4 {[%clk 0:00:19]} 52. Bg2 {[%clk 0:00:03]}  h5 {[%clk 0:00:18]} 53. h4 {[%clk 0:00:03]}  Nc5 {[%clk 0:00:18]} 54. Bh3 {[%clk 0:00:02]}  Nxe4+ {[%clk 0:00:18]} 55. Kg2 {[%clk 0:00:02]}  Ke3 {[%clk 0:00:17]} 56. Be6 {[%clk 0:00:02]}  g5 {[%clk 0:00:15]} 57. hxg5 {[%clk 0:00:02]}  Nxg5 {[%clk 0:00:15]} 58. Bf5 {[%clk 0:00:02]}  e4 {[%clk 0:00:11]} 59. Bg6 {[%clk 0:00:02]}  Kd2 {[%clk 0:00:11]} 60. Bxh5 {[%clk 0:00:03]}  e3 {[%clk 0:00:12]} 61. Kf1 {[%clk 0:00:03]}  Ne4 {[%clk 0:00:11]} 62. Kg2 {[%clk 0:00:03]}  Nc3 {[%clk 0:00:08]} 63. Bf3 {[%clk 0:00:03]}  Ne2 {[%clk 0:00:07]} 64. g4 {[%clk 0:00:03]}  Nd4 {[%clk 0:00:06]} 0-1


[Site "https://www.chess.com"]

[Event "Titled Tuesday Blitz November 22 Late 2022"]
[White "Remolar Gallen, Jose"]
[Black "Goryachkina, Aleksandra"]
[WhiteFideId "2215187"]
[BlackFideId "4147103"]
[WhiteElo "2252"]
[BlackElo "2484"]
[Result "0-1"]
[Round "04"]
[TimeControl "180+1"]
[Date "2022.11.23"]
[WhiteClock "0:00:03"]
[BlackClock "0:00:03"]

1. d4 {[%clk 0:02:58]}  Nf6 {[%clk 0:02:58]} 2. Nf3 {[%clk 0:02:58]}  c5 {[%clk 0:02:57]} 3. d5 {[%clk 0:02:58]}  b5 {[%clk 0:02:57]} 4. a4 {[%clk 0:02:55]}  b4 {[%clk 0:02:53]} 5. Bg5 {[%clk 0:02:46]}  Bb7 {[%clk 0:02:44]} 6. Bxf6 {[%clk 0:02:44]}  gxf6 {[%clk 0:02:44]} 7. e4 {[%clk 0:02:44]}  Bg7 {[%clk 0:02:42]} 8. Nbd2 {[%clk 0:02:43]}  f5 {[%clk 0:02:27]} 9. Bc4 {[%clk 0:02:24]}  Bxb2 {[%clk 0:02:12]} 10. O-O {[%clk 0:02:23]}  Bxa1 {[%clk 0:01:46]} 11. Qxa1 {[%clk 0:02:21]}  Rg8 {[%clk 0:01:45]} 12. exf5 {[%clk 0:01:56]}  d6 {[%clk 0:01:33]} 13. Re1 {[%clk 0:01:49]}  Kf8 {[%clk 0:01:30]} 14. f6 {[%clk 0:01:27]}  exf6 {[%clk 0:01:27]} 15. Ne4 {[%clk 0:01:27]}  Kg7 {[%clk 0:00:26]} 16. Nh4 {[%clk 0:01:03]}  Bc8 {[%clk 0:00:23]} 17. Re3 {[%clk 0:01:04]}  Nd7 {[%clk 0:00:04]} 18. Nf5+ {[%clk 0:00:50]}  Kf8 {[%clk 0:00:04]} 19. Nexd6 {[%clk 0:00:43]}  Ne5 {[%clk 0:00:04]} 20. Nxc8 {[%clk 0:00:15]}  Rxc8 {[%clk 0:00:05]} 21. Rxe5 {[%clk 0:00:14]}  fxe5 {[%clk 0:00:05]} 22. Qxe5 {[%clk 0:00:15]}  Qd7 {[%clk 0:00:05]} 23. d6 {[%clk 0:00:13]}  Re8 {[%clk 0:00:05]} 24. Qxc5 {[%clk 0:00:07]}  Rg6 {[%clk 0:00:04]} 25. g3 {[%clk 0:00:03]}  Rf6 {[%clk 0:00:04]} 26. Bd3 {[%clk 0:00:03]}  Ree6 {[%clk 0:00:03]} 27. Qxb4 {[%clk 0:00:03]}  Rxf5 {[%clk 0:00:03]} 28. Bxf5 {[%clk 0:00:03]}  Qxd6 {[%clk 0:00:03]} 29. Bxe6 {[%clk 0:00:03]}  Qxb4 {[%clk 0:00:03]} 0-1


[Site "https://www.chess.com"]

[Event "Titled Tuesday Blitz November 22 Late 2022"]
[White "Romero Ruscalleda, Josep"]
[Black "Musovic, Armin"]
[WhiteFideId "2231859"]
[BlackFideId "939935"]
[WhiteElo "2183"]
[BlackElo "2288"]
[Result "0-1"]
[Round "04"]
[TimeControl "180+1"]
[Date "2022.11.23"]
[WhiteClock "0:00:12"]
[BlackClock "0:01:52"]

1. e4 {[%clk 0:03:00]}  c6 {[%clk 0:02:57]} 2. Nc3 {[%clk 0:03:00]}  d5 {[%clk 0:02:58]} 3. Nf3 {[%clk 0:03:00]}  dxe4 {[%clk 0:02:57]} 4. Nxe4 {[%clk 0:03:00]}  Nf6 {[%clk 0:02:57]} 5. Qe2 {[%clk 0:03:00]}  Nxe4 {[%clk 0:02:58]} 6. Qxe4 {[%clk 0:03:00]}  Qd5 {[%clk 0:02:59]} 7. Qh4 {[%clk 0:03:00]}  Qe6+ {[%clk 0:02:59]} 8. Be2 {[%clk 0:02:59]}  Qg4 {[%clk 0:02:59]} 9. Qg3 {[%clk 0:02:59]}  Qxg3 {[%clk 0:03:00]} 10. hxg3 {[%clk 0:02:58]}  g6 {[%clk 0:03:01]} 11. d4 {[%clk 0:02:55]}  h5 {[%clk 0:03:01]} 12. Bg5 {[%clk 0:02:51]}  f6 {[%clk 0:03:01]} 13. Be3 {[%clk 0:02:49]}  Be6 {[%clk 0:03:01]} 14. O-O-O {[%clk 0:02:41]}  Bg7 {[%clk 0:03:00]} 15. a3 {[%clk 0:02:36]}  Nd7 {[%clk 0:02:59]} 16. Rhe1 {[%clk 0:02:27]}  Kf7 {[%clk 0:02:58]} 17. Bd3 {[%clk 0:02:22]}  Rhd8 {[%clk 0:02:53]} 18. Bd2 {[%clk 0:02:09]}  Nf8 {[%clk 0:02:53]} 19. Re2 {[%clk 0:01:48]}  Bg4 {[%clk 0:02:46]} 20. Rde1 {[%clk 0:01:44]}  e6 {[%clk 0:02:44]} 21. Bc4 {[%clk 0:01:25]}  b5 {[%clk 0:02:41]} 22. Bb3 {[%clk 0:01:23]}  a5 {[%clk 0:02:38]} 23. c3 {[%clk 0:01:20]}  a4 {[%clk 0:02:36]} 24. Ba2 {[%clk 0:01:20]}  Re8 {[%clk 0:02:31]} 25. Bf4 {[%clk 0:01:17]}  Rad8 {[%clk 0:02:29]} 26. Kb1 {[%clk 0:00:54]}  g5 {[%clk 0:02:20]} 27. Bd2 {[%clk 0:00:46]}  Bf5+ {[%clk 0:02:14]} 28. Ka1 {[%clk 0:00:46]}  g4 {[%clk 0:02:15]} 29. Nh4 {[%clk 0:00:40]}  Bd3 {[%clk 0:02:15]} 30. Re3 {[%clk 0:00:33]}  Bc4 {[%clk 0:02:14]} 31. Bxc4 {[%clk 0:00:32]}  bxc4 {[%clk 0:02:15]} 32. f3 {[%clk 0:00:30]}  Rd5 {[%clk 0:02:14]} 33. Rf1 {[%clk 0:00:25]}  f5 {[%clk 0:02:07]} 34. fxg4 {[%clk 0:00:20]}  hxg4 {[%clk 0:02:08]} 35. Re2 {[%clk 0:00:18]}  Bf6 {[%clk 0:02:06]} 36. Bf4 {[%clk 0:00:17]}  Red8 {[%clk 0:02:00]} 37. Rfe1 {[%clk 0:00:16]}  c5 {[%clk 0:02:00]} 38. dxc5 {[%clk 0:00:15]}  Rxc5 {[%clk 0:02:00]} 39. Bh6 {[%clk 0:00:13]}  Rc6 {[%clk 0:01:56]} 40. Bxf8 {[%clk 0:00:13]}  Rxf8 {[%clk 0:01:57]} 41. Re3 {[%clk 0:00:12]}  Rd8 {[%clk 0:01:54]} 42. R3e2 {[%clk 0:00:12]}  Rd3 {[%clk 0:01:52]} 43. Ka2 {[%clk 0:00:13]}  Rxg3 {[%clk 0:01:51]} 44. Re3 {[%clk 0:00:12]}  Rxe3 {[%clk 0:01:51]} 45. Rxe3 {[%clk 0:00:12]}  Bxh4 {[%clk 0:01:52]} 0-1


[Site "https://www.chess.com"]